[Event "45th FIDE Olympiad 2024"]
[Site "Budapest"]
[Date "2024.09.18"]
[Round "7.81"]
[White "Bjerre, Jonas Buhl"]
[Black "Kantor, Gergely"]
[Result "1-0"]
[ECO "A28"]
[WhiteElo "2648"]
[BlackElo "2537"]
[Annotator "TA"]
[PlyCount "149"]
[EventDate "2024.09.05"]
[EventType "team-tourn"]
[EventCountry "HUN"]
[SourceTitle "playchess.com"]
[Source "ChessBase"]
[SourceQuality "1"]
[WhiteTeam "Denmark"]
[BlackTeam "Hungary C"]
[WhiteTeamCountry "DEN"]
[TimeControl "40/5400+30:1800+30"]

{[%evp 13,149,0,0,0,0,-2,18,23,36,43,35,33,42,14,41,27,19,31,5,0,17,7,20,10,27,0,0,0,0,-14,8,0,24,49,28,30,40,27,28,16,37,35,64,68,68,27,73,72,83,82,79,70,79,50,68,79,104,60,58,56,91,70,77,81,77,0,72,75,83,91,105,106,106,107,108,98,99,67,77,81,83,66,197,172,167,167,193,47,122,118,140,118,164,97,97,97,150,90,285,315,318,318,313,303,333,333,331,331,252,87,84,23,1133,1104,29978,29979,29984,29985,29985,29986,29986,29987,29987,29988,29988,29989,29989,29990,29990,29982,29981,29983,29983,29984,29984,29985,29985,29986]} 1. c4 Nf6 2. Nc3 e5 3. Nf3 Nc6 4. d3 d5 5. cxd5 Nxd5 6. g3 Be7 7. Nxd5 Qxd5 8. Bg2 O-O 9. O-O Qe6 10. Qc2 {The position is equal.} Qg6 11. Be3 Bg4 12. a3 a5 13. Rac1 a4 14. Qd2 Qh5 15. Bc5 {Threatens to win with Bxe7.} Bd6 16. Qe3 Ra6 17. Rfe1 h6 18. Nd2 Rd8 19. Bf3 (19. Bd5 {feels hotter.} Qh3 20. Rc3 Be6 21. Bg2) 19... Bxf3 20. Nxf3 Qf5 21. Rc2 Ne7 {[%cal Bc6e7,Be7d5,Bd5f6][%mdl 32]} 22. Rec1 (22. Nxe5 $2 Nd5 23. Qe4 Qxe5 $19) 22... Nd5 23. Qe4 Qxe4 24. dxe4 Nf6 25. Bxd6 cxd6 26. Rd1 Ra5 (26... Nxe4 27. Nxe5 Ng5 28. Rdd2 $16) 27. Rc4 Rb5 28. Rd2 Ra8 29. Ne1 {[%cal Of2f3]} d5 (29... Rc5 $11 30. Rxc5 dxc5) 30. exd5 $16 Nxd5 31. Nd3 Nb6 32. Rc7 Rd8 {...e4 would now be deadly.} 33. f3 (33. Rxb7 $2 e4 34. Rc2 exd3 $19) 33... Rd7 34. Rdc2 Rbd5 35. Kf2 f6 36. Rxd7 Nxd7 $14 {[%mdl 4096] Endgame. KRN-KRN} 37. Rc7 b6 38. Ra7 Rd4 39. Rc7 ({Better is} 39. Ke3 $16) 39... Kf8 (39... Rd5 $1 $11 {remains equal.}) 40. Ke3 Rd6 41. Ra7 b5 42. Rb7 Nb6 43. Kf2 $1 h5 44. h4 Kg8 45. g4 hxg4 46. fxg4 Kh7 47. Kg3 Nc4 (47... Kg6 $14) 48. Rxb5 $18 e4 49. Nf4 Rb6 50. Rh5+ (50. Rxb6 $18 Nxb6 51. Ng2) 50... Kg8 $16 51. Rc5 Rb3+ 52. Kf2 Nxb2 (52... Ne5 $16 {might work better.}) 53. g5 (53. Rc8+ $18 Kh7 54. g5 fxg5 55. hxg5 Nd1+ 56. Ke1) 53... fxg5 54. hxg5 {Strongly threatening g6.} Rc3 55. Ra5 (55. Rxc3 Nd1+ 56. Kg3 Nxc3 $11) (55. Rd5 $142 $1) 55... Rc6 $2 {[#]} (55... Nd1+ $16 {was worth a try.} 56. Ke1 Ne3) 56. Ra8+ $1 $18 Kf7 57. Ra7+ Kf8 58. Ke3 Nc4+ 59. Kxe4 Nxa3 60. Kd5 $1 (60. Rxa4 Rc4+ 61. Rxc4 Nxc4 $14) 60... Rc8 61. Ng6+ $2 (61. Rxa4 $18 {and White stays clearly on top.} Nb5 62. Rb4 Nc7+ 63. Ke5) 61... Ke8 $16 62. Rxg7 {White has more active pieces.} ({White should try} 62. Rxa4 $16 Nb5 63. Re4+ Kf7 64. Ne5+ Kg8 65. Ke6) 62... Nc4 $2 {[%mdl 8192]} (62... Nb5 $11) 63. Ne7 $18 ({Not} 63. Rg8+ Kf7 64. Rxc8 Nb6+ 65. Kd4 Nxc8 $11) 63... Kf8 {[#]} 64. Rh7 $1 {White mates.} ({Stronger than} 64. Nxc8 Ne3+ 65. Kc5 (65. Ke4 Kxg7 66. Kd3 Nf5 $11) 65... Kxg7 $11) (64. Rg8+ Kxe7 65. Rxc8 Nb6+ 66. Kc5 Nxc8 $11) 64... Ne3+ 65. Ke6 Rc4 66. Rh8+ Kg7 67. Rg8+ Kh7 68. g6+ {[%cal Bg5g6,Bg6g7][%mdl 32]} Kh6 69. Rh8+ Kg5 70. g7 Re4+ 71. Kd7 Rxe7+ 72. Kxe7 Nf5+ 73. Kf8 Nxg7 74. Kxg7 a3 75. Ra8 {Weighted Error Value: White=0.14 (very precise) /Black=0.16 (very precise) .  Loses game:     	---       	Black=2      Missed win:     	White=1     	---        Mistake:       	White=5     	Black=5      Inaccurate:     	White=6     	Black=5      OK:         	White=17    	Black=18     Best:        	White=8     	Black=5      Strong:       	White=3     	---} 1-0

[Event "45th FIDE Olympiad 2024"]
[Site "Budapest"]
[Date "2024.09.18"]
[Round "7.81"]
[White "Tchouka, Yakini"]
[Black "Kim, Sanker"]
[Result "1-0"]
[WhiteElo "1932"]
[BlackElo "1564"]
[PlyCount "63"]
[EventDate "2024.09.05"]
[EventType "team-tourn"]
[EventCountry "HUN"]
[WhiteTeam "Togo"]
[BlackTeam "Cambodia"]
[WhiteTeamCountry "TOG"]
[BlackTeamCountry "CMB"]
[TimeControl "40/5400+30:1800+30"]

1. e4 Nc6 2. d4 e5 3. d5 Nce7 4. g3 Ng6 5. Bg2 Bc5 6. Nc3 d6 7. Na4 Bb6 8. Ne2 Nf6 9. h4 h5 10. Bg5 Nf8 11. f3 N8h7 12. Nxb6 axb6 13. Qd2 Nxg5 14. hxg5 Nd7 15. f4 f6 16. g6 f5 17. exf5 Nf6 18. fxe5 dxe5 19. Qg5 Ng4 20. Qxg4 hxg4 21. Rxh8+ Ke7 22. f6+ gxf6 23. Rxd8 Kxd8 24. g7 Be6 25. dxe6 Ke7 26. O-O-O c6 27. Be4 Rg8 28. Rd7+ Kxe6 29. Bh7 Rb8 30. Rd1 Kf7 31. Rd7+ Ke6 32. Rxb7 1-0

[Event "45th FIDE Olympiad 2024"]
[Site "Budapest"]
[Date "2024.09.18"]
[Round "7.82"]
[White "Krstulovic, Alex"]
[Black "Andersen, Mads"]
[Result "0-1"]
[ECO "D35"]
[WhiteElo "2452"]
[BlackElo "2598"]
[Annotator "RC"]
[PlyCount "74"]
[EventDate "2024.09.05"]
[EventType "team-tourn"]
[EventCountry "HUN"]
[SourceTitle "playchess.com"]
[Source "ChessBase"]
[SourceQuality "1"]
[WhiteTeam "Hungary C"]
[BlackTeam "Denmark"]
[BlackTeamCountry "DEN"]
[TimeControl "40/5400+30:1800+30"]

1. d4 Nf6 2. c4 e6 3. Nc3 d5 4. cxd5 exd5 5. Bg5 Be7 6. e3 h6 7. Bh4 O-O 8. Bd3 c6 9. Nge2 Re8 10. O-O Nbd7 11. a4 Nh5 12. Bxe7 Qxe7 13. a5 Ndf6 14. Nc1 g6 15. Re1 Ng7 16. Qd2 Bf5 17. f3 Rad8 18. Nb3 Bxd3 19. Qxd3 h5 20. e4 Qb4 21. Qc2 h4 22. Rad1 Ne6 23. Na2 Qa4 24. e5 Nh5 25. Rd2 Nhg7 26. Nc3 Qb4 27. Nd1 Nf5 28. Qc3 Qb5 29. Nf2 b6 30. Ng4 Kg7 31. Nf6 Rh8 32. Qd3 Qxd3 33. Rxd3 c5 34. dxc5 bxc5 35. Rxd5 Rxd5 36. Nxd5 Rb8 37. Nd2 Rd8 0-1

[Event "45th FIDE Olympiad 2024"]
[Site "Budapest"]
[Date "2024.09.18"]
[Round "7.83"]
[White "Thybo, Jesper Sondergaard"]
[Black "Juhasz, Agoston"]
[Result "1-0"]
[ECO "E04"]
[WhiteElo "2555"]
[BlackElo "2427"]
[Annotator "TA"]
[PlyCount "65"]
[EventDate "2024.09.05"]
[EventType "team-tourn"]
[EventCountry "HUN"]
[SourceTitle "playchess.com"]
[Source "ChessBase"]
[SourceQuality "1"]
[WhiteTeam "Denmark"]
[BlackTeam "Hungary C"]
[WhiteTeamCountry "DEN"]
[TimeControl "40/5400+30:1800+30"]

{[%evp 14,65,35,25,21,18,27,14,33,56,46,46,101,107,102,102,103,105,212,131,303,281,300,290,305,298,303,316,315,313,295,283,301,305,300,308,300,266,372,372,397,403,506,509,544,537,638,604,629,636,588,537,577,569]} 1. d4 Nf6 2. c4 e6 3. Nf3 d5 4. g3 dxc4 5. Bg2 Bd7 6. Ne5 Bc6 7. Nxc6 Nxc6 8. e3 Qd7 9. O-O Rd8 10. Nd2 e5 {The position is equal.} 11. Nxc4 {[%cal Od1b3]} exd4 12. Qb3 Rb8 (12... b6 $14) 13. Bxc6 $16 Qxc6 14. exd4 {[#] Hoping for Re1+.} Be7 15. Re1 $36 {[%mdl 2048] Bd2 would now be deadly. White is really pushing.} Nd5 (15... Qd7 $16) 16. Ne3 Rd8 (16... Nxe3 $16 17. Qxe3 (17. Rxe3 Qd7 $16) 17... Qd7) 17. Bd2 $18 Nxe3 18. Rxe3 (18. Qxe3 $6 Qe6 $18) 18... Kf8 19. Rc1 Qb6 20. Qxb6 cxb6 21. Rc7 {[%csl LRb7,LRe7]} Bf6 22. Bb4+ Kg8 23. Be7 ({Don't play} 23. Rxb7 h5 24. Bc3 (24. Rxa7 Bxd4 25. Re2 Bf6 $16) (24. Be7 Rxd4 25. Bxf6 gxf6 $18) 24... h4 25. Rxa7 Rh5 $18) 23... Bxe7 24. Rexe7 {[%mdl 4096] Endgame. KRR-KRR} ({But not} 24. Rcxe7 $6 h5 25. Rxb7 Rxd4 $18) 24... Rf8 25. Rxb7 g5 26. Rxa7 h5 27. Re5 Rh6 28. Rxg5+ {White is clearly winning.} Kh7 29. h4 Rc6 30. Rxh5+ Kg6 31. Rg5+ Kf6 32. Rg4 Rc2 33. b4 {Black did not feel at home in the position after the opening.   Weighted Error Value: White=0.09 (flawless) /Black=0.35.  Loses game:     	---       	Black=1      Mistake:       	---       	Black=2      Inaccurate:     	White=1     	Black=1      OK:         	White=12    	Black=4      Best:        	White=4     	Black=5} 1-0

[Event "45th FIDE Olympiad 2024"]
[Site "Budapest"]
[Date "2024.09.18"]
[Round "7.84"]
[White "Vanczak, Tamas"]
[Black "Olsen, Filip Boe"]
[Result "1/2-1/2"]
[ECO "B12"]
[WhiteElo "2401"]
[BlackElo "2441"]
[Annotator "ChessBase"]
[PlyCount "117"]
[EventDate "2024.09.05"]
[EventType "team-tourn"]
[EventCountry "HUN"]
[SourceTitle "playchess.com"]
[Source "ChessBase"]
[SourceQuality "1"]
[WhiteTeam "Hungary C"]
[BlackTeam "Denmark"]
[BlackTeamCountry "DEN"]
[TimeControl "40/5400+30:1800+30"]

1. e4 c6 2. d4 d5 3. e5 Bf5 4. h4 h5 5. Bd3 Qd7 6. Nc3 Bxd3 7. Qxd3 e6 8. Nf3 c5 9. dxc5 Bxc5 10. Be3 Be7 11. Rd1 Nh6 12. Bxh6 Rxh6 13. Ne2 Qc7 14. O-O Nd7 15. Ned4 a6 16. Rfe1 Rc8 17. Qe3 Rh8 18. c4 dxc4 19. Nf5 exf5 20. e6 fxe6 21. Qxe6 Nf8 22. Qxf5 Rh6 23. Rd4 Rf6 24. Qxh5+ g6 25. Qh8 Qb6 26. Rde4 Rc7 27. h5 Rf7 28. hxg6 Rxf3 29. gxf3 Qxg6+ 30. Kf1 Qf7 31. Qe5 Qxf3 32. Kg1 Kd8 33. Qg7 Qf6 34. Qxf6 Bxf6 35. Re8+ Kd7 36. Rxf8 Bxb2 37. Rf7+ Kd6 38. Rxc7 Kxc7 39. Re2 Bh8 40. f4 b5 41. Kf2 Kd6 42. Ke3 b4 43. Rh2 Bf6 44. Rh6 Ke6 45. Ke4 b3 46. axb3 cxb3 47. f5+ Kf7 48. Rh3 b2 49. Rb3 Bc3 50. Rb7+ Kf6 51. Rb6+ Kf7 52. Kd3 Be5 53. Kc2 a5 54. Kb1 Bd4 55. Rd6 Be5 56. Re6 Bd4 57. Re4 Bc3 58. Re3 Bd4 59. Ra3 1/2-1/2

[Event "45th FIDE Olympiad 2024"]
[Site "Budapest"]
[Date "2024.09.18"]
[Round "7.85"]
[White "Keinanen, Toivo"]
[Black "Peralta, Fernando"]
[Result "1/2-1/2"]
[ECO "E09"]
[WhiteElo "2554"]
[BlackElo "2558"]
[Annotator "RC"]
[PlyCount "86"]
[EventDate "2024.09.05"]
[EventType "team-tourn"]
[EventCountry "HUN"]
[SourceTitle "playchess.com"]
[Source "ChessBase"]
[SourceQuality "1"]
[WhiteTeam "Finland"]
[BlackTeam "Argentina"]
[WhiteTeamCountry "FIN"]
[BlackTeamCountry "ARG"]
[TimeControl "40/5400+30:1800+30"]

1. Nf3 d5 2. d4 Nf6 3. c4 e6 4. g3 Be7 5. Bg2 O-O 6. Qc2 c6 7. O-O b6 8. b3 Nbd7 9. Nbd2 Bb7 10. Bb2 c5 11. cxd5 Bxd5 12. Rac1 Rc8 13. Qb1 cxd4 14. Nxd4 Rxc1 15. Rxc1 Bxg2 16. Kxg2 Qa8+ 17. N2f3 Bc5 18. b4 Bxd4 19. Bxd4 Rc8 20. a4 h6 21. b5 Nd5 22. Rc2 Ne7 23. Qc1 f6 24. e4 e5 25. Be3 Kf8 26. Rc4 Ke8 27. Nd2 Rxc4 28. Qxc4 Qc8 29. Qa2 Qc3 30. Nc4 Qd3 31. f3 f5 32. exf5 Nxf5 33. Bf2 e4 34. fxe4 Qxe4+ 35. Kg1 Qd3 36. Ne5 Nxe5 37. Qe6+ Ne7 38. Qxe5 Qd1+ 39. Kg2 Qxa4 40. Qxg7 Qe4+ 41. Kg1 Qb1+ 42. Kg2 Qe4+ 43. Kg1 Qb1+ 1/2-1/2

[Event "45th FIDE Olympiad 2024"]
[Site "Budapest"]
[Date "2024.09.18"]
[Round "7.86"]
[White "Krysa, Leandro"]
[Black "Sipila, Vilka"]
[Result "1-0"]
[ECO "A07"]
[WhiteElo "2495"]
[BlackElo "2462"]
[Annotator "TA"]
[PlyCount "101"]
[EventDate "2024.09.05"]
[EventType "team-tourn"]
[EventCountry "HUN"]
[SourceTitle "playchess.com"]
[Source "ChessBase"]
[SourceQuality "1"]
[WhiteTeam "Argentina"]
[BlackTeam "Finland"]
[WhiteTeamCountry "ARG"]
[BlackTeamCountry "FIN"]
[TimeControl "40/5400+30:1800+30"]

{[%evp 26,101,47,57,41,24,21,7,41,16,62,82,71,15,124,121,177,160,173,159,278,289,273,273,273,277,342,335,586,597,717,689,714,702,728,725,735,710,778,779,779,758,787,782,760,752,658,602,742,727,820,830,733,680,977,997,762,716,1306,960,945,915,949,920,892,895,4710,2000,29978,29979,29974,12790,29983,29984,29984,29985,29988,29989]} 1. Nf3 d5 2. g3 g6 3. Bg2 Bg7 4. O-O e5 5. d3 Nc6 6. e4 dxe4 {A07: Réti Opening: New York and Capablanca Systems.} 7. dxe4 Qxd1 8. Rxd1 Bg4 9. c3 h6 10. Na3 Nge7 11. b4 $146 ({Predecessor:} 11. Nc4 Be6 12. Ne3 Rd8 13. Re1 a5 14. Bf1 O-O 15. a4 f5 16. exf5 gxf5 17. Bc4 Bxc4 18. Nxc4 {1-0 Telljohann,S (2415)-Levin,F (2485) BL2-West 9697 1996 [2]}) 11... O-O 12. Nc4 Be6 13. Bf1 a6 14. a4 Bg4 15. Rd3 Be6 16. Nfd2 h5 17. Ne3 Bh6 (17... f5 $11 {should be considered.}) 18. Nd5 $14 Rfd8 {[#]} 19. Bg2 ({Don't play} 19. Nxc7 Rxd3 20. Bxd3 Bxd2 21. Nxa8 (21. Bxd2 Rd8 $15) 21... Bxc3 $11) (19. c4 $1 $16) 19... Bxd5 (19... Bg7 $11 {keeps the balance.}) 20. exd5 $16 f5 {[#]} (20... Nf5 $16 {was worth a try.}) 21. Nb3 $1 $18 Bxc1 22. Rxc1 e4 (22... Na7 $16 23. Nc5 e4) 23. dxc6 $18 Rxd3 24. cxb7 Rb8 25. Bf1 Rd6 26. Nc5 a5 $2 (26... Kf7 27. a5 (27. Bxa6 Rxa6 28. Nxa6 Rxb7 $18) 27... g5 28. Bxa6 Rxa6 29. Nxa6 Rxb7) 27. bxa5 $18 Nc6 28. a6 Na7 29. Bb5 c6 30. Bc4+ Kf8 31. f3 exf3 32. Kf2 Ke7 33. Re1+ Kd8 34. a5 Rd2+ 35. Kxf3 Kc7 36. Re6 Rc2 37. Ke3 g5 38. Rg6 Re8+ 39. Kd3 Rxh2 40. Rg7+ Kd6 41. Nd7 h4 42. gxh4 ({Less strong is} 42. b8=R Rxb8 43. Nxb8 hxg3 $18) 42... Rh3+ 43. Kc2 Rxh4 44. b8=Q+ Rxb8 45. Nxb8 Rxc4 46. Rd7+ (46. Rxa7 $142 Ra4 47. Rd7+ Kc5 48. Rf7) 46... Kc5 47. Rxa7 Ra4 48. Rf7 Kd6 49. Rxf5 c5 50. a7 Rxa5 51. Na6 1-0

[Event "45th FIDE Olympiad 2024"]
[Site "Budapest"]
[Date "2024.09.18"]
[Round "7.86"]
[White "Roberts, Gennard"]
[Black "Tan, Santiago Jr"]
[Result "1-0"]
[WhiteElo "1582"]
[BlackElo "1903"]
[Annotator "RC"]
[PlyCount "129"]
[EventDate "2024.09.05"]
[EventType "team-tourn"]
[EventCountry "HUN"]
[WhiteTeam "Grenada"]
[BlackTeam "Palau"]
[WhiteTeamCountry "GRA"]
[BlackTeamCountry "PAL"]
[TimeControl "40/5400+30:1800+30"]

1. e4 c6 2. d4 d5 3. exd5 cxd5 4. c4 Nf6 5. Nc3 Nc6 6. Nf3 a6 7. h3 h6 8. a3 dxc4 9. Bxc4 e6 10. O-O Be7 11. Re1 O-O 12. d5 exd5 13. Nxd5 Nxd5 14. Bxd5 Bf6 15. Ra2 Bf5 16. b4 Qc7 17. Be4 Be6 18. Rae2 Bc4 19. Re3 b5 20. Qc2 Rad8 21. Bb2 Nd4 22. Nxd4 Bxd4 23. Bxd4 Rxd4 24. Bf3 Qb6 25. Qc3 Be6 26. Qc6 Rd6 27. Qe4 Rfd8 28. Qh4 a5 29. Rb1 Rd4 30. Qe7 a4 31. Rc1 Bc4 32. Rce1 Rd2 33. Qh4 Be6 34. Rc1 Qd6 35. Qh5 Bc4 36. Rce1 Qf6 37. Qc5 Qd6 38. Re8+ Kh7 39. Rxd8 Qxd8 40. Qf5+ g6 41. Qf4 Qd4 42. Qxd4 Rxd4 43. Rd1 Rxd1+ 44. Bxd1 Kg7 45. f4 g5 46. Kf2 Kf6 47. Ke3 Ke6 48. fxg5 hxg5 49. Kd4 Kd6 50. Bg4 Ba2 51. Bf5 Bd5 52. g3 Bg2 53. h4 gxh4 54. gxh4 Bf3 55. Bd3 Bc6 56. h5 Ke7 57. Ke5 Bd7 58. h6 f6+ 59. Kd5 Kf7 60. Kd6 Be8 61. Bf5 Kf8 62. Ke6 Kg8 63. Kxf6 Kh8 64. Ke5 Bf7 65. Kd4 1-0

[Event "45th FIDE Olympiad 2024"]
[Site "Budapest"]
[Date "2024.09.18"]
[Round "7.87"]
[White "Lahdelma, Henri"]
[Black "Flores, Diego"]
[Result "0-1"]
[ECO "E53"]
[WhiteElo "2331"]
[BlackElo "2546"]
[Annotator "TA"]
[PlyCount "80"]
[EventDate "2024.09.05"]
[EventType "team-tourn"]
[EventCountry "HUN"]
[SourceTitle "playchess.com"]
[Source "ChessBase"]
[SourceQuality "1"]
[WhiteTeam "Finland"]
[BlackTeam "Argentina"]
[WhiteTeamCountry "FIN"]
[BlackTeamCountry "ARG"]
[TimeControl "40/5400+30:1800+30"]

{[%evp 12,80,10,5,20,13,11,15,20,14,25,0,0,0,5,-15,-29,-16,3,0,0,-22,0,0,0,-23,-12,-37,-24,-14,-24,-81,-54,-93,-97,-120,-115,-164,-150,-195,-183,-228,-197,-287,-297,-304,-329,-462,-465,-490,-489,-448,-447,-503,-468,-538,-564,-606,-590,-1140,-585,-1289,-754,-2841,-4971,-5365,-5063,-5257,-2582,-2831,-2167]} 1. d4 Nf6 2. c4 e6 3. Nc3 Bb4 4. e3 O-O 5. Bd3 d5 6. Nf3 c5 7. cxd5 exd5 8. dxc5 Bg4 {[%cal Ob8d7]} 9. O-O Bxc3 {The position is equal.} 10. bxc3 Nbd7 11. h3 Bxf3 12. Qxf3 Nxc5 13. Rd1 Nxd3 14. Rxd3 Rc8 15. a4 Rc4 16. Qd1 Qc7 {[%cal Ob7b6]} 17. a5 Re8 18. Bb2 h6 19. Rd4 Re4 20. Rxe4 Rxe4 21. Qb3 {[#] White is weak on the light squares} (21. Ra4 $11) 21... Qc6 $1 $17 {Black is more active.} 22. Kf1 {White is now going downhill.} Rc4 23. f3 {Prevents Ne4.} Nd7 {[%cal Bf6d7,Bd7e5,Be5c4][%mdl 32]} 24. Qc2 (24. Kf2 $17 {was called for.}) 24... Rc5 25. Kf2 Ne5 26. Kg1 Nc4 27. Bc1 (27. a6 $142) 27... Rxa5 $19 28. Rxa5 Nxa5 {[%mdl 4096] Endgame. KQB-KQN} 29. Ba3 (29. Qb2 $142) 29... Nc4 {[%csl LRa3,LRe3] Black is clearly winning.} 30. Bc1 a5 31. Kf2 a4 32. Ke2 Qb5 33. Kd1 a3 {[%cal Oc4e3] [#] aiming for ...Nxe3+!} 34. Qa2 Qa4+ 35. Ke2 b5 {[%cal Od5d4] White must now prevent ...d4!} 36. g4 g5 {[%cal Od5d4] Hoping for ...d4!} 37. Ke1 Qa5 38. Bd2 Qc7 39. f4 Qe7 (39... gxf4 $142 40. exf4 Qc5) 40. Kf2 Qe4 {Weighted Error Value: White=1.06/Black=0.48.  Mistake:       	White=4     	---        Inaccurate:     	White=4     	---        OK:         	White=3     	Black=12     Strong:       	---       	Black=1} 0-1

[Event "45th FIDE Olympiad 2024"]
[Site "Budapest"]
[Date "2024.09.18"]
[Round "7.88"]
[White "Sosa, Tomas"]
[Black "Wartiovaara, Oliver"]
[Result "0-1"]
[ECO "B50"]
[WhiteElo "2515"]
[BlackElo "2300"]
[Annotator "TA"]
[PlyCount "93"]
[EventDate "2024.09.05"]
[EventType "team-tourn"]
[EventCountry "HUN"]
[SourceTitle "playchess.com"]
[Source "ChessBase"]
[SourceQuality "1"]
[WhiteTeam "Argentina"]
[BlackTeam "Finland"]
[WhiteTeamCountry "ARG"]
[BlackTeamCountry "FIN"]
[TimeControl "40/5400+30:1800+30"]

{[%evp 26,93,34,19,32,26,41,19,31,49,102,97,89,102,105,86,82,81,80,76,88,68,78,74,73,67,70,75,131,129,273,273,275,245,254,270,245,193,199,185,333,166,176,176,308,211,222,210,193,198,1342,1212,5165,5165,5497,1696,881,0,12796,6606,29989,29990,29990,1724,29995,29996,29996,29997,29998,29999]} 1. e4 c5 2. Nc3 d6 3. Nf3 a6 4. g3 e5 5. Bg2 Nc6 6. O-O {B50: Sicilian: 2...d6, Miscellaneous.} g6 7. Nd5 Bg7 8. c3 Nge7 9. d4 exd4 10. Bg5 $146 ({Predecessor:} 10. cxd4 Nxd5 11. exd5 Nxd4 12. Re1+ Kf8 13. Nxd4 cxd4 14. b3 Bf5 15. g4 Bd7 16. Ba3 {1-0 Semenova,E (2284)-Potapova,M (2270) RUS-ch Higher League (Women) 70th 2020 (9)}) 10... h6 11. Bf6 O-O 12. Nxe7+ Nxe7 13. Bxg7 Kxg7 14. cxd4 Bg4 15. dxc5 dxc5 16. Qc2 b6 17. Qc3+ Kh7 ({Better is} 17... f6 $1 $14) 18. Ne5 $1 $16 Be6 19. f4 f6 20. Rad1 Qc7 {[#]} 21. Nxg6 $1 Nxg6 (21... Kxg6 $2 22. f5+ Kg7 23. fxe6 $18) 22. f5 Rae8 23. Bh3 (23. fxg6+ Kxg6 24. b3 Kg7 $11) (23. fxe6 {simplifies} Rxe6 24. Rd5 Ne5 25. Qd2) 23... Bc8 $1 24. fxg6+ Kxg6 25. Bxc8 Qxc8 26. Rf4 Qe6 (26... Rd8 $142 27. Rd5 Rxd5 28. exd5 f5) 27. Rd5 $16 Kg7 (27... Rd8 $16) 28. Qd2 $18 Re7 29. Rd6 Qe5 30. Rg4+ (30. Rxb6 Qd4+ 31. Qxd4 cxd4 $18) 30... Kf7 31. Rh4 (31. Rxb6 $6 Qd4+ 32. Qxd4 cxd4 $16) 31... Qg5 32. Rf4 (32. Rxh6 Qxd2 33. Rxd2 Rxe4 $11) 32... Re6 (32... Kg7 $142 33. Kg2 (33. Rxb6 Rxe4 34. Rb7+ Rf7 $14) 33... c4) 33. Rd5 (33. Rd7+ $142 Ke8 34. Rb7) 33... Re5 $18 34. Rd7+ Re7 (34... Kg8 $142 35. Qe2 f5) 35. Qd6 Rfe8 36. e5 f5 37. Qd3 Kg6 $2 (37... Kg7 38. Rxf5 Qg6) 38. Rd6+ Kg7 39. Rxf5 (39. Qxf5 Qxf5 40. Rxf5 Rxe5 41. Rxe5 Rxe5 $14) 39... Qc1+ 40. Rf1 (40. Kg2 $142 Kh8 41. Rh5 (41. Qxa6 Rxe5 42. Rf2 Qe3 $18) (41. Rxb6 Rg8 $18)) 40... Qg5 $18 41. Rf5 (41. Qxa6 Qe3+ 42. Rf2 Qe1+ 43. Kg2 Qe4+ 44. Rf3 Qc2+ 45. Kg1 Qc1+ 46. Qf1 Qg5 $16) (41. Rff6 $142 Qc1+ 42. Kg2 (42. Rf1 Qg5 $18) 42... Qxb2+ 43. Kf3 Qxe5 44. Qg6+ (44. Rxh6 Re6 $14) 44... Kh8 45. Qxh6+ Kg8 46. Rg6+ (46. Rxb6 $2 Qe2+ 47. Kf4 Re4+ 48. Kg5 Qg4#) 46... Rg7 47. Rxg7+ (47. Rxb6 Qe2+ 48. Kf4 Qe4+ 49. Kg5 Re5+ 50. Kf6 Rf5#) 47... Qxg7 48. Rg6 (48. Rxb6 Qf7+ 49. Rf6 Qd5+ 50. Kg4 Re4+ 51. Rf4 Rxf4+ 52. Qxf4 c4 $11) 48... Qxg6 49. Qxg6+ Kf8 50. Qxb6) 41... Qc1+ $18 42. Kg2 Qxb2+ 43. Kh3 (43. Rf2 Qxe5 44. Qg6+ (44. Rxb6 Re6 $11) 44... Kh8 45. Qxh6+ (45. Rxb6 Qd5+ 46. Kh3 Qd7+ 47. Qf5 Qxf5+ 48. Rxf5 c4 $16) 45... Kg8 46. Rg6+ (46. Rxb6 Qd5+ 47. Rf3 Qxa2+ 48. Rf2 Qd5+ 49. Rf3 Qa2+ 50. Rf2 Qd5+ 51. Rf3 Qa2+ $11) 46... Rg7 47. Rxg7+ (47. Rxb6 $2 Qd5+ 48. Kh3 Rh7 $19) 47... Qxg7 48. Qxb6 Rf8 $16) 43... Qxa2 {[#]} 44. Rg6+ (44. Qf3 $142 $3 {[%mdl 512]} Qf7 45. Rxf7+ Rxf7 46. Qh5 Kf8 47. Qxh6+ (47. Rxh6 Rc8 48. Qg6 Rd8 49. e6 Rf3 50. e7+ Kxe7 51. Rh7+ Kf8 52. Qg7+ Ke8 53. Qe7#) 47... Ke7 48. Rxb6 Rh8 49. Rb7+ (49. Qxh8 Rf5 50. e6 Rh5+ 51. Qxh5 Kf6 52. Qf7+ Ke5 53. Qf4+ Kd5 54. Rd6#) 49... Ke8 50. Qxh8+ Rf8 51. Qh5+ Kd8 52. Qd1+ Ke8 53. Qd7#) 44... Kh8 45. Rxh6+ Kg8 46. Rg5+ (46. Rxb6 Rh7+ 47. Kg4 Qa4+ 48. Rf4 Qd7+ 49. Qxd7 Rxd7 $18) 46... Rg7 47. Qh7+ 0-1